fUSD/lending_fUSD_20241205
["ID","MTS","AMOUNT","RATE_DAILY","PERIOD"]
[344415214,1733429433506,-2000.0,7.699e-05,2]
[344415215,1733429433516,-200.0,7.699e-05,2]
[344415216,1733429433526,-200.0,7.699e-05,2]
[344415217,1733429433536,-200.0,7.7e-05,2]
[344415218,1733429433545,-800.0,7.7e-05,2]
[344415219,1733429433555,-1200.0,7.8e-05,2]
[344415220,1733429433564,-500.0,7.808e-05,2]
[344415221,1733429433574,-918.4262,7.808e-05,2]
[344415222,1733429433584,-4923.00435436,7.867e-05,2]
[344415223,1733429433594,-6767.0461,7.867e-05,2]
[344415224,1733429433608,-2027.9184,7.867e-05,2]
[344415225,1733429433617,-310.2315,7.867e-05,2]
[344415226,1733429433627,-298000.0,7.867e-05,2]
[344415227,1733429433637,-2500.0,7.867e-05,2]
[344415228,1733429433646,-36634.4352,7.867e-05,2]
[344415229,1733429433656,-2118.72,7.867e-05,2]
[344415230,1733429433666,-264.4311,7.867e-05,2]
[344415231,1733429433676,-1700.0,7.9e-05,2]
[344415232,1733429433685,-160.98827581,7.943e-05,2]
[344415233,1733429433695,-500.0,7.943e-05,2]
[344415234,1733429433705,-1245.0,7.945e-05,2]
[344415235,1733429433714,-938.0,7.945e-05,2]
[344415236,1733429433724,-6444.1219173,7.961e-05,2]
[344415237,1733429433734,-10462.463301,7.961e-05,2]
[344415238,1733429433744,-4304.8915467,7.961e-05,2]
[344415239,1733429433754,-1093.784675,7.961e-05,2]
[344415240,1733429433763,-1000.0,7.965e-05,2]
[344415241,1733429433773,-1235.46513366,7.966e-05,2]
[344415242,1733429433784,-1235.46513367,7.966e-05,2]
[344415243,1733429433793,-200.86049111,7.966e-05,2]
[344415244,1733429433803,-20000.0,7.967e-05,2]
[344415245,1733429433813,-640631.64099664,7.967e-05,2]
[344415246,1733429434983,-500.0,7.26e-05,2]
[344415247,1733429434993,-500.0,7.26e-05,2]
[344415248,1733429435002,-58.53273788,7.808e-05,2]
[344415249,1733429435013,-442.62409296,7.808e-05,2]
[344415250,1733429435024,-73760.77273726,7.967e-05,2]
[344415251,1733429435035,-958.4575,7.967e-05,2]
[344415252,1733429435135,-4764.68256852,7.967e-05,2]
[344415253,1733429435146,-1485.0,7.967e-05,2]
[344415254,1733429435163,-3715.73401905,7.967e-05,2]
[344415255,1733429435175,-99635.59673174,7.967e-05,2]
[344415256,1733429435187,-987.8400015,7.967e-05,2]
[344415260,1733429435225,-544.80755799,7.967e-05,2]
[344415262,1733429435237,-868084.29882291,7.967e-05,2]
[344415264,1733429435249,-703.49275761,7.967e-05,2]
[344415265,1733429435260,-2034.83114064,7.967e-05,2]
[344415266,1733429435272,-1978.2,7.967e-05,2]
[344415267,1733429435283,-295.94062617,7.967e-05,2]
[344415268,1733429435304,-2623.20008091,7.967e-05,2]
[344415269,1733429435315,-19812.0,7.967e-05,2]
[344415270,1733429435333,-34096.51160771,7.967e-05,2]
[344415271,1733429435344,-88058.10709884,7.967e-05,2]
[344415273,1733429435360,-10314.27425213,7.967e-05,2]
[344415277,1733429435372,-2406.2,7.967e-05,2]
[344415294,1733429437744,-140720.74357381,7.967e-05,2]
[344415295,1733429437800,-1930392.09792657,7.967e-05,2]
[344415296,1733429437810,-1514.0,7.967e-05,2]
[344415297,1733429437822,-8595.53045582,7.967e-05,2]
[344415298,1733429437832,-420.0,7.976e-05,2]
[344415299,1733429437841,-2100.0,8e-05,2]
[344415300,1733429437855,-739.52,8.02e-05,2]
[344415301,1733429437870,-164.85,8.068e-05,2]
[344415302,1733429437880,-1733.833587,8.178e-05,2]
[344415303,1733429437890,-5800.0,8.219e-05,2]
[344415304,1733429437900,-166.94,8.219e-05,2]
[344415305,1733429437910,-250.0,8.219e-05,2]
[344415306,1733429437919,-5496.24,8.219e-05,2]
[344415307,1733429437929,-500.82,8.219e-05,2]
[344415308,1733429437939,-1000.0,8.219e-05,2]
[344415309,1733429437949,-10429.71,8.264e-05,2]
[344415310,1733429437958,-255.0,8.468e-05,2]
[344415311,1733429437968,-435.07,8.548e-05,2]
[344415312,1733429437977,-500.82,8.676e-05,2]
[344415313,1733429437987,-156.99,8.725e-05,2]
[344415314,1733429437997,-200.0,8.74e-05,2]
[344415315,1733429438006,-587.0,8.774e-05,2]
[344415316,1733429438015,-164.85,8.875e-05,2]
[344415317,1733429438026,-4494.47802397,9e-05,2]
[344415318,1733429438038,-739.52,9.023e-05,2]
[344415319,1733429438048,-500.82,9.132e-05,2]
[344415320,1733429438058,-1000.0,9.247e-05,2]
[344415321,1733429438067,-433.0,9.315e-05,2]
[344415322,1733429438077,-500.82,9.589e-05,2]
[344415323,1733429438086,-823.0,9.651e-05,2]
[344415324,1733429438096,-164.85,9.682e-05,2]
[344415325,1733429438109,-619.261,9.69e-05,2]
[344415326,1733429438119,-1756.3,9.8e-05,2]
[344415327,1733429438143,-69529.49447921,9.951e-05,2]
[344415328,1733429438153,-156.99,9.971e-05,2]
[344415329,1733429438162,-885.9548479,9.995e-05,2]
[344415330,1733429438171,-2000.0,9.999e-05,2]
[344415331,1733429438181,-1000.0,0.0001,2]
[344415332,1733429438190,-1000.0,0.0001,2]
[344415334,1733429438200,-1000.0,0.0001,2]
[344415336,1733429438210,-1000.0,0.0001,2]
[344415338,1733429438219,-1000.0,0.0001,2]
[344415340,1733429438228,-3000.0,0.0001,2]
[344415342,1733429438238,-739.52,0.00010025,2]
[344415343,1733429438249,-500.82,0.00010046,2]
[344415345,1733429438258,-605.5202,0.00010149,2]
[344415347,1733429438267,-166.82133689,0.00010197,2]
[344415349,1733429438277,-1000.0,0.00010197,2]
[344415351,1733429438286,-324925.4393186,0.00010198,2]
[344415353,1733429438299,-301.8005939,0.00010198,2]
[344415355,1733429438311,-449.33540734,0.00010198,2]
[344415356,1733429438334,-9852.17820439,0.00010198,2]
[344415357,1733429438347,-1776.55469539,0.00010198,2]
[344415358,1733429438369,-418.84105641,0.00010198,2]
[344415359,1733429438381,-363.21,0.00010198,2]
[344415360,1733429438392,-1982.02004,0.00010198,2]
[344415361,1733429438404,-987.65,0.00010198,2]
[344415362,1733429438416,-465.43,0.00010198,2]
[344415363,1733429438432,-19803.8,0.00010198,2]
[344415364,1733429438444,-43713.63073105,0.00010198,2]
[344415365,1733429438460,-992.19042,0.00010198,2]
[344415366,1733429438474,-1976.76789968,0.00010198,2]
[344415367,1733429438486,-2073.86198471,0.00010198,2]
[344415368,1733429438498,-2387.97908671,0.00010198,2]
[344415380,1733429439678,-4007.58333265,0.00010198,2]
[344415382,1733429439690,-962.70587103,0.00010198,2]
[344415384,1733429439701,-4929.29442245,0.00010198,2]
[344415387,1733429439712,-393.788,0.00010198,2]
[344415390,1733429439734,-298.46947452,0.00010198,2]
[344415392,1733429439745,-554.03531634,0.00010198,2]
[344415394,1733429439757,-2045.41185999,0.00010198,2]
[344415395,1733429439789,-79968.38717969,0.00010198,2]
[344415396,1733429439799,-201.22755302,0.00010199,2]
[344415397,1733429439808,-1664.28513118,0.00010199,2]
[344415398,1733429439822,-736.0,0.00010246,2]
[344415399,1733429439831,-166.94,0.00010274,2]
[344415400,1733429439841,-1000.0,0.00010274,2]
[344415401,1733429439851,-5496.24,0.00010382,2]
[344415402,1733429439865,-500.82,0.00010502,2]
[344415403,1733429439874,-1152.0,0.00010616,2]
[344415404,1733429439884,-231.49183966,0.000109,2]
[344415405,1733429439893,-200.0,0.00010959,2]
[344415406,1733429439902,-1.34885374,0.00010959,2]
[344415407,1733429439928,-198.65114626,0.00010959,2]
[344415408,1733429439939,-200.0,0.00010959,2]
[344415409,1733429439950,-200.0,0.00010959,2]
[344415410,1733429439960,-200.0,0.00010959,2]
[344415411,1733429439969,-452.21385374,0.00010959,2]
[344415412,1733429439997,-361.29614626,0.00010959,2]
[344415413,1733429440007,-150.0,0.00010959,2]
[344415414,1733429440016,-476.18534874,0.00010959,2]
[344415415,1733429441957,-5135.75465126,0.00010959,2]
[344415416,1733429441967,-500.82,0.00010959,2]
[344415417,1733429441976,-739.52,0.00011028,2]
[344415418,1733429441986,-3000.0,0.0001103,2]
[344415419,1733429441996,-156.99,0.00011218,2]
[344415420,1733429442006,-1252.0,0.0001127,2]
[344415421,1733429442016,-150.99,0.00011281,2]
[344415422,1733429442025,-1364.37,0.00011281,2]
[344415423,1733429442035,-1505.87,0.00011281,2]
[344415424,1733429442044,-1000.0,0.00011301,2]
[344415425,1733429442054,-3172.22702657,0.0001131,2]
[344415426,1733429442064,-500.82,0.00011416,2]
[344415428,1733429442073,-2751.0,0.00011507,2]
[344415429,1733429442083,-10429.71,0.0001157,2]
[344415430,1733429442092,-1613.0,0.00011678,2]
[344415431,1733429442101,-500.82,0.00011872,2]
[344415432,1733429442113,-768.17010469,0.000119,2]
[344415436,1733429442184,-202.0,0.00012,2]
[344415437,1733429442195,-3357.88475033,0.00012,2]
[344415438,1733429442205,-191.20228972,0.0001203,2]
[344415439,1733429442226,-548.31771028,0.0001203,2]
[344415440,1733429442235,-4393.38228972,0.00012055,2]
[344415441,1733429442247,-40672.08771028,0.00012055,2]
[344415442,1733429442256,-5564.0,0.000123,5]
[344415443,1733429442266,-166.94,0.00012329,2]
[344415444,1733429442275,-95549.9,0.00012329,2]
[344415445,1733429442285,-1000.0,0.00012329,2]
[344415446,1733429442294,-500.82,0.00012329,2]
[344415447,1733429442303,-1204.0,0.00012401,2]
[344415448,1733429442312,-5496.24,0.00012545,2]
[344415449,1733429442321,-150.0,0.00012577,2]
[344415450,1733429442331,-150.0,0.00012577,2]
[344415451,1733429442341,-150.0,0.00012577,2]
[344415452,1733429442350,-144811.61390089,0.00012577,2]
[344415453,1733429442363,-12093.02075037,0.00012577,2]
[344415454,1733429442373,-693.21815058,0.00012577,2]
[344415455,1733429442388,-2258.0,0.00012846,2]
[344415456,1733429442397,-488.22334257,0.00012851,2]
[344415457,1733429442406,-176.910292,0.00012972,2]
[344415458,1733429442415,-5268.9,0.000132,7]
[344415459,1733429442425,-151.0,0.00013264,2]
[344415460,1733429442434,-176.910292,0.00013296,2]
[344415462,1733429442443,-1166.0,0.0001331,2]
[344415463,1733429442453,-13713.0,0.0001331,2]
[344415464,1733429442462,-5963.0,0.0001331,2]
[344415465,1733429442471,-150.0,0.0001331,2]
[344415466,1733429442481,-1098.0,0.0001331,2]
[344415467,1733429442490,-566.0,0.0001334,2]
[344415468,1733429442500,-1262.0,0.0001334,2]
[344415469,1733429442509,-2003.0,0.0001334,2]
[344415470,1733429442519,-150.256,0.0001334,2]
[344415471,1733429442528,-773.822,0.0001334,2]
[344415472,1733429442537,-1893.0,0.0001334,2]
[344415473,1733429442547,-563.0,0.0001334,2]
[344415476,1733429442557,-1252.0,0.0001334,2]
[344415478,1733429442566,-3761.0,0.0001334,2]
[344415479,1733429442575,-816.0,0.0001334,2]
[344415480,1733429442584,-3529.0,0.0001334,2]
[344415481,1733429442593,-973.0,0.0001334,2]
[344415482,1733429442602,-535.0,0.0001334,2]
[344415483,1733429442615,-1055.0,0.00013527,2]
[344415484,1733429442624,-3000.0,0.0001353,2]
[344415485,1733429442633,-176.910292,0.00013621,2]
[344415486,1733429442643,-500.0,0.00013698,2]
[344415487,1733429442651,-500.0,0.00013699,2]
[344415489,1733429442661,-500.0,0.00013699,2]
[344415492,1733429442670,-500.0,0.00013699,2]
[344415495,1733429442679,-500.0,0.00013699,2]
[344415498,1733429442688,-500.0,0.00013699,2]
[344415502,1733429442696,-500.0,0.00013699,2]
[344415506,1733429442705,-500.0,0.00013699,2]
[344415507,1733429442714,-500.0,0.00013699,2]
[344415509,1733429442722,-500.0,0.00013699,2]
[344415511,1733429442730,-500.0,0.00013699,2]
[344415513,1733429442739,-500.0,0.00013699,2]
[344415515,1733429442748,-500.0,0.00013699,2]
[344415517,1733429442757,-500.0,0.00013699,2]
[344415519,1733429442766,-500.0,0.00013699,2]
[344415521,1733429442775,-500.0,0.00013699,2]
[344415522,1733429442784,-200.0,0.00013699,2]
[344415523,1733429442798,-800.0,0.00013699,2]
[344415524,1733429442807,-800.0,0.00013699,2]
[344415525,1733429442816,-800.0,0.00013699,2]
[344415526,1733429442825,-800.0,0.00013699,2]
[344415527,1733429442835,-800.0,0.00013699,2]
[344415528,1733429442844,-800.0,0.00013699,2]
[344415529,1733429442855,-800.0,0.00013699,2]
[344415530,1733429442868,-800.0,0.00013699,2]
[344415531,1733429442877,-800.0,0.00013699,2]
[344415532,1733429442886,-800.0,0.00013699,2]
[344415533,1733429442895,-800.0,0.00013699,2]
[344415534,1733429442905,-800.0,0.00013699,2]
[344415535,1733429442914,-800.0,0.00013699,2]
[344415536,1733429442925,-800.0,0.00013699,2]
[344415537,1733429442935,-800.0,0.00013699,2]
[344415538,1733429442944,-800.0,0.00013699,2]
[344415539,1733429442953,-800.0,0.00013699,2]
[344415540,1733429442962,-800.0,0.00013699,2]
[344415541,1733429442971,-12005.48897069,0.00013699,2]
[344415542,1733429443115,-1311.0,9.033e-05,2]
[344415544,1733429443124,-17332.76390492,0.00013699,2]
[344415546,1733429443136,-989.87,0.00013699,2]
[344415547,1733429443147,-4036.89712439,0.00013699,2]
[344415548,1733429443156,-296.50125454,0.00013699,2]
[344415549,1733429443179,-503.49874546,0.00013699,2]
[344415550,1733429443189,-448.6,0.00013699,2]
[344415551,1733429443198,-7000.0,0.00013699,2]
[344415552,1733429443208,-9783.37,0.00013699,2]
[344415553,1733429443218,-258.53,0.00013699,2]
[344415554,1733429443227,-150.0,0.00013699,2]
[344415555,1733429443237,-800.0,0.00013699,2]
[344415556,1733429443246,-200.0,0.00013699,2]
[344415557,1733429443255,-668.00125454,0.00013699,2]
[344415558,1733429443274,-131.99874546,0.00013699,2]
[344415561,1733429443284,-800.0,0.00013699,2]
[344415563,1733429443294,-3742.00125454,0.00013699,2]
[344415564,1733429443321,-28766.97874546,0.00013699,2]
[344415565,1733429443331,-800.0,0.00013699,2]
[344415566,1733429443340,-800.0,0.00013699,2]
[344415567,1733429443350,-800.0,0.00013699,2]
[344415568,1733429443363,-800.0,0.00013699,2]
[344415569,1733429443372,-12553.8,0.00013699,2]
[344415570,1733429443382,-500.0,0.00013699,2]
[344415571,1733429443391,-502.33910378,0.00013699,2]
[344415572,1733429443400,-500.0,0.00013699,2]
[344415573,1733429443410,-500.0,0.00013699,2]
[344415574,1733429443419,-500.0,0.00013699,2]
[344415575,1733429443429,-500.0,0.00013699,2]
[344415576,1733429443439,-528.55002055,0.00013699,2]
[344415577,1733429443449,-500.0,0.00013699,2]
[344415578,1733429443458,-500.0,0.00013699,2]
[344415579,1733429443467,-246.72494338,0.00013699,2]
[344415580,1733429443479,-253.27505662,0.00013699,2]
[344415581,1733429443489,-162.83496956,0.00013699,2]
[344415582,1733429443498,-300.02885068,0.00013699,2]
[344415583,1733429443507,-314.16661114,0.00013699,2]
[344415584,1733429443517,-159.43053862,0.00013699,2]
[344415585,1733429443527,-153.389695,0.00013699,2]
[344415586,1733429443537,-159.89328597,0.00013699,2]
[344415587,1733429443546,-159.44328915,0.00013699,2]
[344415588,1733429443556,-159.43217958,0.00013699,2]
[344415589,1733429443566,-399.5992,0.00013699,2]
[344415590,1733429443576,-397.66374747,0.00013699,2]
[344415591,1733429443586,-159.2152466,0.00013699,2]
[344415592,1733429443597,-162.56239364,0.00013699,2]
[344415593,1733429443607,-102.25340039,0.00013699,2]
[344415594,1733429443624,-397.74659961,0.00013699,2]
[344415595,1733429443634,-160.53086866,0.00013699,2]
[344415596,1733429443643,-159.8404555,0.00013699,2]
[344415597,1733429443653,-205.86633511,0.00013699,2]
[344415598,1733429443662,-500.0,0.00013699,2]
[344415599,1733429443672,-514.21209906,0.00013699,2]
[344415600,1733429443683,-202.33865206,0.00013699,2]
[344415601,1733429443694,-312.96486077,0.00013699,2]
[344415602,1733429443703,-412.26513923,0.00013699,2]
[344415603,1733429443714,-91.47530223,0.00013699,2]
[344415604,1733429443723,-159.16403237,0.00013699,2]
[344415605,1733429443732,-283.3156669,0.00013699,2]
[344415606,1733429443743,-216.6843331,0.00013699,2]
[344415607,1733429443753,-398.0076669,0.000137,2]
[344415608,1733429443764,-312.92,0.000137,2]
[344415609,1733429443780,-522.6323331,0.000137,2]
[344415610,1733429443790,-871.26884614,0.000137,2]
[344415611,1733429443801,-362.29115386,0.000137,2]
[344415612,1733429443811,-1233.56,0.000137,2]
[344415613,1733429443826,-1233.56,0.000137,2]
[344415614,1733429443835,-1233.56,0.000137,2]
[344415615,1733429443845,-1233.56,0.000137,2]
[344415616,1733429443854,-615.70884614,0.000137,2]
[344415617,1733429443871,-617.85115386,0.000137,2]
[344415618,1733429443881,-1233.56,0.000137,2]
[344415619,1733429443891,-1233.56,0.000137,2]
[344415620,1733429443900,-1233.56,0.000137,2]
[344415621,1733429443910,-1264.49,0.000137,2]
[344415622,1733429443920,-1264.49,0.000137,2]
[344415623,1733429443929,-1264.49,0.000137,2]
[344415624,1733429443939,-1264.49,0.000137,2]
[344415625,1733429443950,-1264.49,0.000137,2]
[344415626,1733429443960,-500.0,0.00013835,2]
[344415627,1733429443969,-500.0,0.00013836,2]
[344415628,1733429443978,-500.0,0.00013836,2]
[344415629,1733429443987,-500.0,0.00013836,2]
[344415630,1733429443997,-500.0,0.00013836,2]
[344415631,1733429444006,-500.0,0.00013972,2]
[344415632,1733429444015,-150.0,0.00014059,2]
[344415633,1733429444024,-500.0,0.00014109,2]
[344415634,1733429444033,-2396.89296898,0.0001413,2]
[344415635,1733429444045,-765.10703102,0.0001413,2]
[344415636,1733429444053,-1055.0,0.00014239,2]
[344415637,1733429444062,-500.0,0.00014246,2]
[344415638,1733429444072,-486.4145168,0.00014247,2]
[344415639,1733429444083,-513.5854832,0.00014247,2]
[344415640,1733429444092,-1000.0,0.00014247,2]
[344415641,1733429444102,-732.47093407,0.00014247,2]
[344415642,1733429444114,-381.1368199,0.00014247,2]
[344415643,1733429444123,-99.20177564,0.00014247,2]
[344415644,1733429444141,-900.79822436,0.00014247,2]
[344415645,1733429444150,-517.31642185,0.00014247,2]
[344415646,1733429444159,-1000.0,0.00014247,2]
[344415647,1733429444168,-1000.0,0.00014247,2]
[344415648,1733429444177,-684.20322939,0.00014247,2]
[344415649,1733429444186,-1000.0,0.00014247,2]
[344415650,1733429444195,-500.0,0.00014383,2]
[344415651,1733429444205,-200.0,0.0001441,2]
[344415652,1733429444214,-150.0,0.0001442,2]
[344415653,1733429444223,-500.0,0.0001452,2]
[344415654,1733429444232,-500.0,0.00014657,2]
[344415655,1733429444241,-5496.24,0.00014708,2]
[344415656,1733429444251,-150.0,0.0001478,2]
[344415657,1733429444260,-500.0,0.00014794,2]
[344415658,1733429444270,-214.27400157,0.000149,2]
[344415659,1733429444279,-214.27400156,0.000149,2]
[344415660,1733429444289,-214.27400156,0.000149,2]
[344415661,1733429444298,-500.0,0.00014931,2]
[344415662,1733429444308,-1055.0,0.00014989,2]
[344415663,1733429444317,-450.0,0.00015,2]
[344415664,1733429444327,-450.0,0.00015,2]
[344415665,1733429444336,-9852.0,0.00015,2]
[344415666,1733429444346,-150.0,0.00015,15]
[344415667,1733429444355,-500.0,0.00015068,2]
[344415668,1733429444367,-300.0,0.00015068,2]
[344415669,1733429444377,-150.0,0.00015141,2]
[344415670,1733429444387,-500.0,0.00015205,2]
[344415671,1733429444396,-1500.0,0.00015248,2]
[344415672,1733429444406,-1500.0,0.00015248,2]
[344415673,1733429444415,-1500.0,0.00015248,2]
[344415674,1733429444425,-1594.54917913,0.00015248,2]
[344415675,1733429444435,-1500.0,0.00015248,2]
[344415676,1733429444444,-1000.01734013,0.00015248,2]
[344415677,1733429444453,-500.0,0.00015342,2]
[344415678,1733429444462,-200.0,0.0001537,2]
[344415679,1733429444473,-500.0,0.00015479,2]
[344415680,1733429444483,-150.0,0.00015501,2]
[344415681,1733429444492,-4427.0,0.00015543,2]
[344415682,1733429444502,-500.0,0.00015616,2]
[344415683,1733429444511,-500.0,0.00015753,2]
[344415684,1733429444520,-1055.0,0.00015778,2]
[344415685,1733429444529,-150.0,0.00015862,2]
[344415686,1733429444538,-500.0,0.0001589,2]
[344415687,1733429444547,-1049.0,0.000159,2]
[344415688,1733429444556,-500.0,0.00016027,2]
[344415689,1733429444565,-3000.0,0.0001603,2]
[344415690,1733429444574,-9999.99,0.00016116,2]
[344415691,1733429444583,-500.0,0.00016164,2]
[344415692,1733429444592,-150.0,0.00016222,2]
[344415693,1733429444601,-500.0,0.00016301,2]
[344415694,1733429444612,-1166.0,0.0001631,2]
[344415695,1733429444621,-13713.0,0.0001631,2]
[344415696,1733429444630,-5963.0,0.0001631,2]
[344415697,1733429444639,-150.0,0.0001631,2]
[344415698,1733429444648,-400.0,0.00016339,2]
[344415699,1733429444658,-400.0,0.00016339,2]
[344415700,1733429444667,-400.0,0.00016339,2]
[344415701,1733429444676,-566.0,0.0001634,2]
[344415702,1733429444685,-1262.0,0.0001634,2]
[344415703,1733429444693,-2003.0,0.0001634,2]
[344415704,1733429444703,-150.0,0.0001634,2]
[344415705,1733429444712,-1893.0,0.0001634,2]
[344415706,1733429444722,-1252.0,0.0001634,2]
[344415707,1733429444732,-3190.06359945,0.0001634,2]
[344415708,1733429445147,-569.93640055,0.0001634,2]
[344415709,1733429445157,-386.81359945,0.0001634,2]
[344415710,1733429445181,-3141.18640055,0.0001634,2]
[344415711,1733429445191,-255.0,0.0001634,2]
[344415712,1733429445199,-500.0,0.00016438,2]
[344415713,1733429445208,-150.02,0.00016438,2]
[344415714,1733429445217,-300.0,0.00016438,2]
[344415715,1733429445226,-150.0,0.00016438,2]
[344415716,1733429445235,-500.0,0.00016452,14]
[344415717,1733429445246,-139.29055353,0.00016461,14]
[344415718,1733429445269,-360.70944647,0.00016461,14]
[344415719,1733429445278,-500.0,0.0001647,14]
[344415720,1733429445287,-129.92055353,0.00016479,14]
[344415721,1733429445298,-370.07944647,0.00016479,14]
[344415722,1733429445307,-500.0,0.00016488,14]
[344415723,1733429445316,-500.0,0.00016496,14]
[344415724,1733429445337,-500.0,0.00016505,14]
[344415725,1733429445353,-500.0,0.00016514,14]
[344415726,1733429445366,-500.0,0.00016523,14]
[344415727,1733429445375,-500.0,0.00016532,14]
[344415728,1733429445385,-2000.0,0.00016546,2]
[344415729,1733429445395,-2024.51094862,0.00016546,2]
[344415730,1733429445405,-1201.64861116,0.00016546,2]
[344415731,1733429445415,-2066.95408191,0.00016546,2]
[344415732,1733429445426,-1055.0,0.00016566,2]
[344415733,1733429445438,-344.74,0.00016575,2]
[344415734,1733429445449,-151.0,0.0001658,2]
[344415735,1733429445459,-150.0,0.00016583,2]
[344415736,1733429445469,-1259.97,0.00016658,30]
[344415737,1733429445478,-175.34,0.00016712,2]
[344415739,1733429445488,-4390.75,0.000168,14]
[344415740,1733429445497,-5496.24,0.00016871,2]
[344415741,1733429445506,-150.0,0.00016943,2]
[344415742,1733429445515,-500.0,0.00017,2]
[344415743,1733429445523,-500.0,0.00017,2]
[344415744,1733429445532,-857.928926,0.00017,2]
[344415745,1733429445542,-3945.0,0.00017097,2]
[344415746,1733429445552,-250.0,0.00017123,2]
[344415747,1733429445562,-230.0,0.000173,2]
[344415748,1733429445572,-364.0,0.000173,2]
[344415750,1733429445582,-150.0,0.00017304,2]
[344415752,1733429445591,-1055.0,0.00017395,2]
[344415754,1733429445601,-150.0,0.00017664,2]
[344415756,1733429445612,-5000.0,0.00017805,2]
[344415758,1733429445621,-5000.0,0.00017805,2]
[344415760,1733429445630,-5000.0,0.00017805,2]
[344415761,1733429445639,-350.0,0.00017808,2]
[344415763,1733429445649,-400.0,0.00017899,2]
[344415764,1733429445658,-400.0,0.00017899,2]
[344415765,1733429445668,-400.0,0.00017899,2]
[344415766,1733429445678,-367.8,0.000179,2]
[344415767,1733429445688,-367.8,0.000179,2]
[344415768,1733429445698,-367.8,0.000179,2]
[344415769,1733429445707,-367.8,0.000179,2]
[344415770,1733429445716,-367.8,0.000179,2]
[344415771,1733429445725,-367.8,0.000179,2]
[344415772,1733429445735,-367.8,0.000179,2]
[344415773,1733429445745,-367.8,0.000179,2]
[344415774,1733429445755,-367.8,0.000179,2]
[344415775,1733429445764,-367.8,0.000179,2]
[344415776,1733429445774,-367.8,0.000179,2]
[344415777,1733429445784,-367.8,0.000179,2]
[344415778,1733429445793,-367.8,0.000179,2]
[344415779,1733429445803,-367.8,0.000179,2]
[344415780,1733429445813,-367.8,0.000179,2]
[344415781,1733429445825,-367.8,0.000179,2]
[344415782,1733429445836,-367.8,0.000179,2]
[344415783,1733429445849,-367.8,0.000179,2]
[344415784,1733429445859,-367.8,0.000179,2]
[344415785,1733429445870,-315.64830076,0.000179,2]
[344415786,1733429445882,-52.15169924,0.000179,2]
[344415787,1733429445893,-367.8,0.000179,2]
[344415788,1733429445902,-367.8,0.000179,2]
[344415789,1733429445914,-367.8,0.000179,2]
[344415790,1733429445925,-367.8,0.000179,2]
[344415791,1733429445935,-367.8,0.000179,2]
[344415792,1733429445945,-367.8,0.000179,2]
[344415793,1733429445955,-367.8,0.000179,2]
[344415794,1733429445965,-367.8,0.000179,2]
[344415795,1733429445976,-367.8,0.000179,2]
[344415796,1733429445986,-367.8,0.000179,2]
[344415797,1733429445996,-367.8,0.000179,2]
[344415798,1733429446012,-367.8,0.000179,2]
[344415799,1733429446021,-367.8,0.000179,2]
[344415800,1733429446032,-367.8,0.000179,2]
[344415801,1733429446041,-367.8,0.000179,2]
[344415802,1733429446053,-367.8,0.000179,2]
[344415803,1733429446063,-367.8,0.000179,2]
[344415804,1733429446073,-367.8,0.000179,2]
[344415805,1733429446083,-367.8,0.000179,2]
[344415806,1733429446094,-367.8,0.000179,2]
[344415807,1733429446103,-367.8,0.000179,2]
[344415808,1733429446115,-367.8,0.000179,2]
[344415809,1733429446125,-367.8,0.000179,2]